bitfinex-derivatives/quotes_ETHF0:USTF0_20250309
["timestamp","ask_amount","ask_price","bid_price","bid_amount"]
[1741509924143,3.21468579,2180.1,2179.7,2.96439043]
[1741509924350,3.86958579,2180.1,2179.7,2.96439043]
[1741509924547,0.55058,2179.9,2179.7,2.96439043]
[1741509924755,0.55056,2180.0,2179.7,2.96439043]
[1741509926448,3.21468579,2180.1,2179.7,2.96439043]
[1741509926656,0.55057,2180.0,2179.7,3.51500043]
[1741509927854,0.6558,2180.0,2179.7,3.51500043]
[1741509928051,0.6558,2180.0,2179.7,2.96439043]
[1741509928248,0.5506,2179.8,2179.7,2.96439043]
[1741509928449,0.55059,2179.9,2179.7,2.96439043]
[1741509928643,1.20637,2180.0,2179.7,3.51500043]
[1741509928849,0.6529,2179.8,2179.7,0.55061]
[1741509929446,0.6558,2180.0,2179.6,0.65198579]
[1741509929757,2.6528,2180.0,2179.8,0.55059]
[1741509929956,3.20336,2180.0,2179.7,1.16662]
[1741509930152,2.6528,2180.0,2179.8,0.5506]
[1741509930554,2.6528,2180.0,2179.7,0.616]
[1741509930749,3.20336,2180.0,2179.7,1.16662]
[1741509931562,0.55059,2179.9,2179.7,1.16662]
[1741509932159,2.6528,2180.0,2179.7,1.16662]
[1741509932360,3.20337,2180.0,2179.7,0.616]
[1741509932661,2.6528,2180.0,2179.7,0.616]
[1741509932855,2.6528,2180.0,2179.8,0.55059]
[1741509933056,2.6528,2180.0,2179.7,0.616]
[1741509933255,3.20336,2180.0,2179.7,1.16661]
[1741509933660,2.6528,2180.0,2179.8,0.55059]
[1741509933957,12.83682413,2180.7,2180.0,1.37639]
[1741509934156,0.6118,2180.6,2180.4,0.55044]
[1741509934356,0.6118,2180.6,2180.1,1.2643]
[1741509934557,0.55045,2180.5,2180.1,1.81481]
[1741509934956,1.16222,2180.6,2180.1,1.2643]
[1741509935153,0.00688579,2180.5,2180.3,0.55045]
[1741509935358,0.00688579,2180.5,2180.4,0.55045]
[1741509940566,0.55048,2180.3,2180.2,2.96439043]
[1741509940753,0.5505,2180.2,2180.1,0.6467]
[1741509941662,0.5505,2180.2,2180.0,3.2078]
[1741509941964,0.00688579,2180.5,2179.8,3.60119043]
[1741509941965,0.55055,2180.0,2179.8,2.96439043]
[1741509942461,0.6509,2179.9,2179.8,2.96439043]
[1741509942664,0.6509,2179.9,2179.6,0.65158579]
[1741509942965,0.55063,2179.7,2179.6,0.00688579]
[1741509944862,3.2078,2179.8,2179.6,0.00688579]
[1741509945165,1.20149,2179.9,2179.6,0.55752579]
[1741509946968,0.55061,2179.8,2179.6,0.00688579]
[1741509947466,0.6509,2179.9,2179.6,0.00688579]
[1741509947964,0.55061,2179.8,2179.6,0.00688579]
[1741509948160,1.2015,2179.9,2179.6,0.55753579]
[1741509948562,0.6509,2179.9,2179.6,0.55753579]
[1741509948864,0.5506,2179.8,2179.6,0.00688579]
[1741509949063,1.20149,2179.9,2179.6,0.55753579]
[1741509949262,1.20149,2179.9,2179.6,3.76533579]
[1741509949763,0.55061,2179.8,2179.6,0.55753579]
[1741509951066,0.6509,2179.9,2179.6,0.55753579]
[1741509951067,1.2015,2179.9,2179.6,0.55753579]
[1741509951257,0.6509,2179.9,2179.6,0.00688579]
[1741509951768,0.6509,2179.9,2179.7,0.55061]
[1741509951966,1.78144,2180.1,2179.8,1.1862]
[1741509952167,1.75874,2180.1,2179.8,1.1862]
[1741509952568,1.75874,2180.1,2179.8,0.6356]
[1741509952768,1.75874,2180.1,2179.8,1.18619]
[1741509953468,1.75875,2180.1,2179.8,1.18619]
[1741509953664,1.15825,2180.1,2179.8,1.18619]
[1741509953869,0.55055,2180.1,2179.9,1.19258]
[1741509954071,0.55055,2180.1,2179.9,1.2713]
[1741509954665,0.55055,2180.0,2179.9,1.2713]
[1741509954874,3.2078,2180.2,2179.8,0.6356]
[1741509955068,0.55075,2179.2,2179.1,0.6113]
[1741509955470,44.0078,2179.5,2178.8,2.96439043]
[1741509955764,0.55082,2179.0,2178.8,2.96439043]
[1741509955968,0.55082,2179.0,2178.7,3.75867]
[1741509956169,1.17598579,2179.1,2178.8,0.55085]
[1741509956369,0.55081,2179.0,2178.8,0.55085]
[1741509957169,0.55081,2179.0,2178.7,3.75867]
[1741509958771,0.55085,2178.9,2178.7,3.2078]
[1741509960173,0.62518579,2179.1,2178.6,1.23478579]
[1741509960367,0.55087,2178.8,2178.6,1.23478579]
[1741509960773,0.55088,2178.7,2178.6,1.23478579]
[1741509963277,0.55088,2178.7,2178.6,0.00688579]
[1741509965970,3.2078,2178.9,2178.6,0.00688579]
[1741509966176,0.55087,2178.8,2178.6,0.00688579]
[1741509966569,3.2078,2178.9,2178.6,0.00688579]
[1741509966570,3.75864,2178.9,2178.6,0.00688579]
[1741509966875,0.55088,2178.7,2178.6,0.00688579]
[1741509967379,3.75865,2178.9,2178.6,0.55778579]
[1741509967573,0.55085,2178.9,2178.6,0.55778579]
[1741509967876,0.55085,2178.9,2178.6,0.00688579]
[1741509968275,0.55085,2178.9,2178.7,0.55088]
[1741509968477,0.55085,2178.9,2178.6,0.55778579]
[1741509969274,0.55082,2179.0,2178.6,0.00688579]
[1741509969475,0.00688579,2179.1,2179.0,0.55081]
[1741509970269,0.00688579,2179.1,2179.0,1.16551]
[1741509970477,0.00688579,2179.1,2179.0,1.79751]
[1741509973076,0.55766579,2179.1,2179.0,1.2467]
[1741509973775,0.55766579,2179.1,2178.7,3.59639043]
[1741509973776,0.55081,2179.0,2178.7,3.59639043]
[1741509973981,0.6494,2179.0,2178.7,3.59639043]
[1741509974284,1.20022,2179.0,2178.7,4.14726043]
[1741509974880,0.6494,2179.0,2178.7,3.59639043]
[1741509975081,0.6494,2179.0,2178.8,0.55085]
[1741509975584,0.00688579,2179.1,2178.7,3.59639043]
[1741509975783,0.00688579,2179.1,2178.8,3.2078]
[1741509975979,0.00688579,2179.1,2179.0,0.55081]
[1741509976784,3.2078,2179.9,2179.5,0.55068]
[1741509976985,0.55061,2179.8,2179.6,0.6498]
[1741509977291,0.55061,2179.8,2179.6,1.2453]
[1741509978277,3.21468579,2179.9,2179.6,1.2453]
[1741509978482,0.5506,2179.8,2179.6,1.2453]
[1741509979286,3.76527579,2179.9,2179.6,1.79595]
[1741509979582,0.00688579,2179.9,2179.7,0.55063]
[1741509979787,0.00688579,2179.9,2179.8,0.5506]
[1741509979979,0.00688579,2179.9,2179.6,4.4531]
[1741509980184,0.00688579,2179.9,2179.7,0.55061]
[1741509980579,0.00688579,2179.9,2179.6,4.4531]
[1741509980778,0.00688579,2179.9,2179.8,0.5506]
[1741509982378,2.55644,2180.5,2180.2,0.5505]
[1741509982582,0.55045,2180.4,2180.1,0.55051]
[1741509982988,3.8185,2180.6,2180.0,0.6165]
[1741509983182,0.55046,2180.4,2180.1,1.17162]
[1741509983685,0.55048,2180.3,2180.1,0.6211]
[1741509983885,0.00688579,2180.5,2180.0,0.00688579]
[1741509984079,0.55053,2180.1,2180.0,0.00688579]
[1741509986175,0.55052,2180.2,2180.0,0.00688579]
[1741509987086,0.6369,2180.4,2180.0,0.00688579]
[1741509987287,0.55052,2180.2,2180.0,0.00688579]
[1741509987679,0.55053,2180.1,2180.0,0.00688579]
[1741509988191,0.55051,2180.2,2180.0,0.00688579]
[1741509990684,0.55049,2180.3,2180.0,0.55742579]
[1741509991388,0.6369,2180.4,2180.0,0.00688579]
[1741509991791,1.18737,2180.4,2180.1,0.55051]
[1741509992689,1.18737,2180.4,2180.1,1.14801]
[1741509993086,0.6369,2180.4,2180.2,0.5505]
[1741509993389,1.18736,2180.4,2180.1,1.14801]
[1741509994188,0.55048,2180.3,2180.1,0.5975]
[1741509994386,0.55048,2180.3,2180.1,1.14802]
[1741509995186,0.6369,2180.4,2180.1,1.14802]
[1741509995394,0.55048,2180.3,2180.1,1.14802]
[1741509995690,0.6369,2180.4,2180.0,0.00688579]
[1741509995691,0.55052,2180.2,2180.0,0.00688579]
[1741509995894,0.55052,2180.2,2180.0,0.55743579]
[1741509997692,0.55052,2180.2,2180.0,0.00688579]
[1741509998691,0.55052,2180.2,2180.0,0.55743579]
[1741510000191,0.55053,2180.1,2180.0,0.00688579]
[1741510000390,0.55065,2179.6,2179.5,20.593]
[1741510000988,0.55068,2179.5,2179.4,3.2078]
[1741510001389,3.2078,2179.8,2179.2,0.00688579]
[1741510001591,0.55073,2179.3,2179.2,0.00688579]
[1741510003599,1.18833,2179.3,2179.2,0.00688579]
[1741510005891,0.6376,2179.3,2179.2,0.00688579]
[1741510006091,1.18833,2179.3,2179.2,0.00688579]
[1741510007701,3.2078,2179.5,2179.2,0.00688579]
[1741510007897,3.7585,2179.5,2179.2,0.55763579]
[1741510008096,0.55071,2179.4,2179.2,0.00688579]
[1741510008297,0.55071,2179.4,2179.3,0.5981]
[1741510008901,0.5507,2179.5,2179.3,0.5981]
[1741510010004,0.6549,2179.7,2179.3,0.5981]
[1741510010201,0.55069,2179.5,2179.3,0.5981]
[1741510011001,0.6549,2179.7,2179.3,0.5981]
[1741510011203,0.5507,2179.5,2179.3,0.5981]
[1741510011400,0.6549,2179.7,2179.3,0.5981]
[1741510011599,0.55069,2179.5,2179.3,0.5981]
[1741510013102,0.55069,2179.5,2179.4,0.6024]
[1741510013804,0.6549,2179.7,2179.4,0.6024]
[1741510014005,0.55068,2179.5,2179.4,0.6024]
[1741510015003,0.6549,2179.7,2179.4,0.6024]
[1741510015305,1.20554,2179.7,2179.5,0.55068]
[1741510015504,1.20554,2179.7,2179.5,0.55067]
[1741510015898,0.55064,2179.7,2179.5,0.55067]
[1741510016306,0.55065,2179.6,2179.4,1.15309]
[1741510016504,3.2078,2179.8,2179.4,1.15309]
[1741510016703,0.55064,2179.7,2179.4,1.15309]
[1741510017006,3.75842,2179.8,2179.5,0.55067]
[1741510017205,3.2078,2179.8,2179.4,0.6024]
[1741510017498,0.55064,2179.7,2179.4,1.15309]
[1741510017692,0.55064,2179.7,2179.4,0.6024]
[1741510018096,0.55064,2179.7,2179.4,1.15309]
[1741510018393,0.6275,2180.0,2179.5,0.55068]
[1741510019295,0.6275,2180.0,2179.4,0.6024]
[1741510019496,0.55064,2179.7,2179.4,1.15309]
[1741510019705,0.55065,2179.6,2179.4,1.15309]
[1741510020004,0.55065,2179.6,2179.4,0.6024]
[1741510020706,2.00392,2180.0,2179.4,0.6024]
[1741510020908,0.55068,2179.5,2179.4,0.6024]
[1741510021407,0.55067,2179.6,2179.4,0.6024]
[1741510021711,0.55067,2179.6,2179.4,1.1531]
[1741510022006,0.55064,2179.7,2179.4,1.1531]
[1741510022206,0.55067,2179.6,2179.4,0.6024]
[1741510022706,0.55068,2179.5,2179.4,0.6024]
[1741510023404,0.55067,2179.6,2179.4,0.6024]
[1741510024011,0.55068,2179.5,2179.4,0.6024]
[1741510025907,3.2078,2179.8,2179.4,0.6024]
[1741510026203,0.55068,2179.5,2179.4,0.6024]
[1741510026602,0.5507,2179.4,2179.3,3.2078]
[1741510026906,0.5507,2179.4,2179.2,0.00688579]
[1741510026907,0.55073,2179.3,2179.2,0.00688579]
[1741510028012,1.14642,2179.4,2179.2,0.55763579]
[1741510028405,3.75849,2179.5,2179.2,0.55763579]
[1741510028908,0.55073,2179.3,2179.2,0.00688579]
[1741510033111,1.14283,2179.3,2179.2,0.00688579]
[1741510034911,0.55073,2179.3,2179.2,0.00688579]
[1741510036108,0.6165,2179.4,2179.2,0.00688579]
[1741510036412,1.2574,2179.8,2179.2,3.76543579]
[1741510036605,1.8926,2179.8,2179.3,1.2456]
[1741510036801,1.8926,2179.8,2179.4,0.6016]
[1741510037008,1.2728,2179.8,2179.4,0.6016]
[1741510037203,0.55068,2179.5,2179.4,0.6016]
[1741510037408,0.55063,2179.7,2179.4,1.15229]
[1741510037607,0.6352,2179.8,2179.4,0.6016]
[1741510037813,0.55063,2179.7,2179.4,1.15229]
[1741510038115,0.55065,2179.7,2179.4,0.6016]
[1741510038514,0.55065,2179.6,2179.4,0.6016]
[1741510038814,0.55064,2179.7,2179.4,0.6016]
[1741510039012,3.2504,2180.1,2179.5,3.2078]
[1741510039215,0.55059,2179.9,2179.6,0.55065]
[1741510039421,3.2504,2180.1,2179.5,3.75846]
[1741510039711,0.5506,2179.9,2179.5,3.75846]
[1741510041421,0.55063,2179.8,2179.5,3.2078]
[1741510042319,0.55063,2179.8,2179.5,3.75848]
[1741510042717,3.2078,2180.0,2179.5,3.2078]
[1741510042908,0.55065,2179.6,2179.5,3.2078]
[1741510043719,0.55068,2179.5,2179.4,0.6016]
[1741510044018,4.58419,2180.0,2179.4,0.6016]
[1741510044019,0.5921,2179.8,2179.4,0.6016]
[1741510044519,0.55067,2179.6,2179.4,0.6016]
[1741510044826,0.5921,2179.8,2179.4,0.6016]
[1741510045018,0.55066,2179.6,2179.4,0.6016]
[1741510046620,1.14271,2179.8,2179.5,0.55066]
[1741510047017,0.55063,2179.7,2179.4,1.15229]
[1741510047218,0.5921,2179.8,2179.4,1.1523]
[1741510047617,0.55064,2179.7,2179.4,1.15229]
[1741510048519,0.55064,2179.7,2179.4,1.79259]
[1741510049319,0.5921,2179.8,2179.4,1.79259]
[1741510049522,0.55067,2179.6,2179.4,1.2419]
[1741510051227,0.55068,2179.5,2179.4,0.6016]
[1741510051824,0.55067,2179.6,2179.4,0.6016]
[1741510052030,0.55065,2179.7,2179.4,1.1523]
[1741510053136,0.5921,2179.8,2179.4,1.1523]
[1741510053428,0.55066,2179.6,2179.4,1.1523]
[1741510053629,0.55064,2179.7,2179.4,1.1523]
[1741510054928,3.8238,2180.0,2179.6,0.55065]
[1741510055130,4.4261,2180.0,2179.6,0.55065]
[1741510055435,4.4261,2180.0,2179.7,0.6161]
[1741510056231,0.5506,2179.8,2179.7,0.6161]
[1741510057138,4.4261,2180.0,2179.4,0.6016]
[1741510057336,0.55068,2179.6,2179.4,0.6016]
[1741510057830,0.55067,2179.6,2179.4,0.6016]
[1741510058224,4.4261,2180.0,2179.4,0.6016]
[1741510058427,0.55064,2179.7,2179.4,1.15228]
[1741510058630,4.4261,2180.0,2179.4,0.6016]
[1741510058836,0.55068,2179.5,2179.4,0.6016]
[1741510059838,0.55066,2179.6,2179.4,1.1523]
[1741510060937,0.55061,2179.8,2179.5,0.55066]
[1741510061140,0.55061,2179.8,2179.5,0.55067]
[1741510062039,0.6023,2180.0,2179.6,3.2078]
[1741510062340,1.1995,2180.2,2179.7,0.6222]
[1741510062637,0.55054,2180.1,2179.8,1.15619]
[1741510063235,1.8502,2180.2,2179.8,0.6056]
[1741510063437,0.55056,2180.0,2179.8,0.6056]
[1741510063737,0.55054,2180.1,2179.8,1.15619]
[1741510064231,2.40071,2180.2,2179.9,0.55057]
[1741510064837,1.8502,2180.2,2179.8,0.6056]
[1741510065238,1.2012,2180.2,2179.9,0.55056]
[1741510065428,3.2078,2180.3,2179.8,0.6056]
[1741510065627,0.59918579,2180.5,2180.0,3.2078]
[1741510065832,1.14961579,2180.5,2180.2,0.55049]
[1741510066035,1.14961579,2180.5,2180.3,0.6231]
[1741510066343,0.55045,2180.4,2180.3,0.6231]
[1741510068242,0.59918579,2180.5,2180.0,3.2078]
[1741510068541,0.55049,2180.3,2180.1,1.16012]
[1741510068935,0.59918579,2180.5,2180.1,0.6096]
[1741510069133,0.59918579,2180.5,2180.3,0.55047]
[1741510069134,1.14962579,2180.5,2180.3,0.55047]
[1741510069330,0.59918579,2180.5,2180.3,0.55047]
[1741510069536,1.14961579,2180.5,2180.2,1.19758]
[1741510069838,0.55046,2180.4,2180.2,0.6471]
[1741510070037,0.59918579,2180.5,2180.2,0.6471]
[1741510070238,0.55048,2180.3,2180.2,0.6471]
[1741510070437,0.5505,2180.2,2180.1,0.6096]
[1741510071340,0.55053,2180.1,2180.0,3.2078]
[1741510077148,1.97529579,2180.5,2180.0,3.2078]
[1741510077149,0.59918579,2180.5,2180.0,3.2078]
[1741510077357,0.55051,2180.2,2180.1,0.6277]
[1741510078551,0.55052,2180.2,2180.0,3.2078]
[1741510078751,0.59918579,2180.5,2180.0,0.633]
[1741510079355,0.55053,2180.1,2180.0,0.633]
[1741510080457,0.55055,2180.0,2179.9,0.6482]
[1741510080660,1.3107,2180.3,2179.9,0.6482]
[1741510080853,0.55054,2180.1,2179.9,1.19878]
[1741510081461,1.3107,2180.3,2179.9,0.6482]
[1741510082363,0.55055,2180.1,2179.9,0.6482]
[1741510082761,1.3107,2180.3,2179.9,0.6482]
[1741510082960,0.55055,2180.0,2179.9,0.6482]
[1741510085558,3.2957,2180.3,2179.7,2.96439043]
[1741510085762,0.6354,2179.9,2179.4,1.2391]
[1741510085958,0.5965,2179.8,2179.4,1.2391]
[1741510086259,0.55066,2179.6,2179.4,1.78979]
[1741510086561,0.55066,2179.6,2179.4,4.99759]
[1741510086759,0.55066,2179.6,2179.4,4.4469]
[1741510087060,0.55065,2179.7,2179.4,4.99759]
[1741510087263,0.55067,2179.6,2179.4,4.4469]
[1741510088366,1.2752,2179.9,2179.4,4.4469]
[1741510088863,0.55068,2179.5,2179.4,4.4469]
[1741510089159,0.55068,2179.5,2179.4,3.8548]
[1741510090261,1.37655,2179.8,2179.3,20.591]
[1741510090262,0.5507,2179.4,2179.3,20.591]
[1741510090570,1.1761,2179.4,2179.3,20.591]
[1741510091865,0.5507,2179.4,2179.3,20.591]
[1741510101575,0.55068,2179.5,2179.3,20.591]
[1741510101872,0.5507,2179.4,2179.3,20.591]
[1741510105174,0.5507,2179.5,2179.3,21.14172]
[1741510105571,0.5507,2179.4,2179.3,20.591]
[1741510112969,0.55073,2179.3,2179.2,0.00688579]
[1741510118380,0.55069,2179.5,2179.2,0.00688579]
[1741510118577,0.5507,2179.5,2179.2,0.55762579]
[1741510118781,0.5507,2179.5,2179.3,0.55072]
[1741510119285,1.1945,2179.8,2179.2,0.00688579]
[1741510119286,2.57105,2179.8,2179.2,0.00688579]
[1741510119479,3.2078,2179.7,2179.2,0.00688579]
[1741510120187,0.55073,2179.3,2179.2,0.00688579]
[1741510125186,0.55071,2179.4,2179.2,0.55762579]
[1741510125585,0.55071,2179.4,2179.2,0.00688579]
[1741510126391,0.55071,2179.4,2179.2,0.55763579]
[1741510128289,3.2078,2179.7,2179.2,0.55763579]
[1741510128592,0.55071,2179.4,2179.2,0.00688579]
[1741510129592,0.55071,2179.4,2179.2,0.55763579]
[1741510130092,0.55073,2179.3,2179.2,0.00688579]
[1741510130684,3.8339,2179.7,2179.2,0.00688579]
[1741510130892,0.55072,2179.4,2179.2,0.00688579]
[1741510133595,0.55073,2179.4,2179.2,0.00688579]
[1741510133896,0.55073,2179.4,2179.2,0.55763579]
[1741510134101,0.55073,2179.4,2179.2,0.00688579]
[1741510134397,3.8339,2179.7,2179.2,0.00688579]
[1741510134696,0.55073,2179.3,2179.2,0.00688579]
[1741510147795,0.55086,2178.8,2178.7,2.96439043]
[1741510147988,4.4087,2179.4,2178.7,1.9047]
[1741510148295,1.37683,2179.3,2178.7,2.45556]
[1741510149000,0.00688579,2179.2,2178.8,0.00688579]
[1741510149202,0.55085,2178.9,2178.8,0.00688579]
[1741510152605,0.6292,2179.1,2178.8,0.55773579]
[1741510152804,0.55083,2179.0,2178.8,0.00688579]
[1741510153497,0.6292,2179.1,2178.8,0.00688579]
[1741510153801,0.55082,2179.0,2178.8,0.55773579]
[1741510154202,0.55082,2179.0,2178.8,0.00688579]
[1741510155805,0.55081,2179.0,2178.8,0.55772579]
[1741510156304,1.18,2179.1,2178.8,0.55772579]
[1741510156609,0.6292,2179.1,2178.8,0.55772579]
[1741510156906,0.55081,2179.0,2178.8,0.55772579]
[1741510157604,0.6292,2179.1,2178.8,0.55772579]
[1741510158102,0.55081,2179.0,2178.8,0.55772579]
[1741510158405,0.55081,2179.0,2178.8,0.00688579]
[1741510159404,0.55081,2179.0,2178.8,3.21468579]
[1741510159909,0.6292,2179.1,2178.8,3.21468579]
[1741510160205,0.55078,2179.1,2178.9,0.55082]
[1741510160504,0.00688579,2179.2,2178.9,0.55082]
[1741510160704,0.55765579,2179.2,2179.0,0.65]
[1741510162708,0.55078,2179.1,2179.0,0.65]
[1741510164913,0.00688579,2179.2,2179.0,0.65]
[1741510165212,0.55765579,2179.2,2179.0,0.65]
[1741510166312,0.00688579,2179.2,2179.0,0.65]
[1741510166504,0.00688579,2179.2,2179.0,1.2008]
[1741510166705,0.00688579,2179.2,2179.1,0.5994]
[1741510167405,0.55763579,2179.2,2179.1,0.5994]
[1741510167604,0.00688579,2179.2,2179.1,0.5994]
[1741510168412,0.00688579,2179.2,2179.1,1.2068]
[1741510168808,0.00688579,2179.2,2179.1,4.96538]
[1741510169607,0.00688579,2179.2,2179.1,4.4146]
[1741510170710,0.00688579,2179.2,2179.1,4.96538]
[1741510175617,0.00688579,2179.2,2179.1,1.75758]
[1741510175814,0.55763579,2179.2,2179.1,0.5994]
[1741510176017,0.55078,2179.1,2178.9,0.6003]
[1741510177111,0.63098579,2179.2,2178.9,0.6003]
[1741510177311,1.18176579,2179.2,2178.9,1.15112]
[1741510177617,1.18176579,2179.2,2179.0,0.5951]
[1741510179116,1.18176579,2179.2,2178.9,1.15112]
[1741510179311,0.63098579,2179.2,2178.9,1.15112]
[1741510179512,0.55078,2179.1,2178.9,1.15112]
[1741510180720,1.18175579,2179.2,2178.9,1.15112]
[1741510180917,0.55078,2179.1,2178.9,1.15112]
[1741510181213,0.63098579,2179.2,2178.9,1.15112]
[1741510181411,0.55078,2179.1,2178.9,1.15112]
[1741510181811,1.18175579,2179.2,2178.9,1.15112]
[1741510182011,0.55079,2179.1,2178.9,1.15112]
[1741510182220,1.18175579,2179.2,2178.9,1.15112]
[1741510182612,0.55078,2179.1,2178.9,1.15112]
[1741510182918,1.18175579,2179.2,2178.9,1.15112]
[1741510183512,0.63098579,2179.2,2178.9,0.6003]
[1741510183815,0.00688579,2179.2,2179.0,0.55079]
[1741510184019,0.00688579,2179.2,2179.1,1.2476]
[1741510184814,0.00688579,2179.2,2179.1,5.00618]
[1741510186013,0.00688579,2179.2,2179.1,4.4554]
[1741510187509,0.00688579,2179.2,2179.1,5.00618]
[1741510192127,0.00688579,2179.2,2179.1,1.79838]
[1741510192823,0.00688579,2179.2,2179.1,1.2476]
[1741510193919,0.00688579,2179.2,2179.1,1.79838]
[1741510194121,0.00688579,2179.2,2179.1,1.2476]
[1741510195121,0.55763579,2179.2,2179.1,1.2476]
[1741510195825,0.00688579,2179.2,2179.1,1.2476]
[1741510196021,0.00688579,2179.2,2179.1,0.652]
[1741510196221,1.16423579,2179.2,2179.1,0.652]
[1741510196831,0.55081,2179.0,2178.9,3.1898]
[1741510197130,0.55079,2179.1,2178.9,3.16732]
[1741510197329,0.55079,2179.1,2178.9,4.41612]
[1741510197528,0.55078,2179.1,2178.9,4.41612]
[1741510198132,0.61348579,2179.2,2178.9,3.8653]
[1741510198427,1.16425579,2179.2,2178.9,4.41611]
[1741510198828,1.16425579,2179.2,2178.9,3.8653]
[1741510199031,1.16425579,2179.2,2178.9,4.41611]
[1741510199330,1.16425579,2179.2,2178.9,3.8653]
[1741510199732,1.16425579,2179.2,2179.0,0.5508]
[1741510200229,0.61348579,2179.2,2178.9,3.8653]
[1741510200418,0.55081,2179.0,2178.9,3.8653]
[1741510200624,0.6263,2179.1,2178.9,3.8653]
[1741510201024,0.55081,2179.0,2178.9,3.8653]
[1741510201223,0.6263,2179.1,2178.9,4.41612]
[1741510201425,1.16425579,2179.2,2178.9,3.8653]
[1741510201628,0.55765579,2179.2,2179.0,0.5508]
[1741510201932,0.55764579,2179.2,2178.9,4.41611]
[1741510202731,0.55764579,2179.2,2179.0,0.5508]
[1741510203028,0.55081,2179.0,2178.9,3.8653]
[1741510203328,0.6475,2179.1,2178.9,3.8653]
[1741510203630,0.55081,2179.0,2178.9,3.8653]
[1741510204219,0.55081,2179.0,2178.9,1.8993]
[1741510204532,0.55081,2179.0,2178.9,0.6505]
[1741510204727,1.14391,2179.0,2178.9,0.6505]
[1741510208228,0.5931,2179.0,2178.9,0.6505]
[1741510208628,1.14391,2179.0,2178.9,0.6505]
[1741510210732,0.6475,2179.1,2178.9,0.6505]
[1741510210939,0.00688579,2179.2,2179.0,0.5508]
[1741510211130,0.00688579,2179.2,2179.1,0.6039]
[1741510211331,0.55763579,2179.2,2179.1,0.6039]
[1741510211530,0.55763579,2179.2,2179.0,0.6236]
[1741510211531,0.55078,2179.1,2179.0,0.6236]
[1741510211727,1.15255579,2179.2,2179.0,0.6236]
[1741510211933,0.00688579,2179.2,2179.0,0.6236]
[1741510212239,0.00688579,2179.2,2179.1,0.55078]
[1741510212626,0.00688579,2179.2,2179.0,0.6236]
[1741510212838,0.00688579,2179.2,2179.1,0.55078]
[1741510213339,0.00688579,2179.2,2179.0,1.17439]
[1741510213849,0.00688579,2179.2,2179.1,0.55078]
[1741510216031,0.00688579,2179.2,2179.1,3.75858]
[1741510216528,0.00688579,2179.2,2179.1,3.2078]
[1741510216734,0.55765579,2179.2,2179.0,2.5896]
[1741510216935,0.55765579,2179.2,2179.0,0.6236]
[1741510217137,0.6191,2179.1,2179.0,0.6236]
[1741510218934,1.16988,2179.1,2179.0,0.6236]
[1741510219136,0.55081,2179.0,2178.9,0.6505]
[1741510219338,0.55083,2178.9,2178.8,3.21468579]
[1741510222743,0.6066,2179.0,2178.8,3.21468579]
[1741510222936,1.15743,2179.0,2178.8,3.21468579]
[1741510223743,0.6066,2179.0,2178.8,3.76552579]
[1741510223943,1.15741,2179.0,2178.8,3.76552579]
[1741510224143,0.55083,2178.9,2178.8,3.21468579]
[1741510224643,0.6066,2179.0,2178.8,3.21468579]
[1741510224846,0.55083,2178.9,2178.8,3.21468579]
[1741510225039,1.15742,2179.0,2178.8,3.21468579]
[1741510225239,0.6066,2179.0,2178.8,3.21468579]
[1741510225442,1.15742,2179.0,2178.8,3.21468579]
[1741510225943,1.15742,2179.0,2178.9,0.6498]
[1741510226140,3.21468579,2179.2,2178.9,0.6498]
[1741510226444,0.55081,2179.0,2178.9,0.6498]
[1741510240057,3.21468579,2179.2,2179.1,0.55078]
[1741510240058,0.00688579,2179.2,2179.1,0.55078]
[1741510240252,3.8722,2179.8,2179.1,3.2078]
[1741510240559,0.55071,2179.4,2179.1,3.2078]
[1741510240761,0.55071,2179.4,2179.2,0.55075]
[1741510241258,0.55757579,2179.5,2179.2,0.55075]
[1741510241556,0.55757579,2179.5,2179.3,1.17062]
[1741510241759,0.55757579,2179.5,2179.4,0.6007]
[1741510244462,0.55757579,2179.5,2179.4,1.1976]
[1741510244955,0.00688579,2179.5,2179.4,1.1976]
[1741510245761,0.55756579,2179.5,2179.4,1.1976]
[1741510245959,0.00688579,2179.5,2179.4,1.7483]
[1741510249064,0.00688579,2179.5,2179.4,1.1976]
[1741510249357,0.00688579,2179.5,2179.4,1.7483]
[1741510249561,0.00688579,2179.5,2179.4,4.9561]
[1741510251655,4.5018,2180.1,2179.4,7.36979043]
[1741510251856,4.5018,2180.1,2179.5,1.3767]
[1741510252064,5.05234,2180.1,2179.8,0.55059]
[1741510252361,5.05235,2180.1,2179.9,1.9051]
[1741510253361,4.5018,2180.1,2179.9,1.9051]
[1741510253563,5.05234,2180.1,2179.9,1.9051]
[1741510253860,5.05234,2180.1,2179.9,2.45567]
[1741510253861,4.5018,2180.1,2179.9,2.45567]
[1741510256660,4.5018,2180.1,2179.9,1.9051]
[1741510257768,5.05234,2180.1,2179.9,2.45567]
[1741510258069,4.5018,2180.1,2179.9,2.45567]
[1741510258863,3.8579,2180.1,2180.0,0.55055]
[1741510259065,0.00688579,2180.2,2180.0,0.55055]
[1741510259364,1.16178579,2180.2,2180.0,0.55055]
[1741510260568,0.61128579,2180.2,2180.0,0.55055]
[1741510261268,1.16178579,2180.2,2180.0,0.55055]
[1741510261469,0.61128579,2180.2,2180.0,0.55055]
[1741510261763,0.61128579,2180.2,2180.1,0.55053]
[1741510261764,0.00688579,2180.2,2180.1,0.55053]
[1741510266665,0.55738579,2180.2,2179.9,1.91198579]
[1741510266970,0.55738579,2180.2,2179.9,1.80715579]
[1741510267170,0.6328,2180.1,2179.9,1.80715579]
[1741510267671,1.18333,2180.1,2179.9,1.80715579]
[1741510267974,0.6328,2180.1,2179.9,0.61078579]
[1741510268165,0.6328,2180.1,2179.9,1.16135579]
[1741510269369,1.18333,2180.1,2179.9,0.61078579]